bitfinex-derivatives/quotes_BTCF0:USTF0_20251109
["timestamp","ask_amount","ask_price","bid_price","bid_amount"]
[1762657973127,0.53781416,101810.0,101800.0,0.14677493]
[1762657975740,0.17701416,101810.0,101800.0,0.15989493]
[1762657977741,0.53781416,101810.0,101800.0,0.15989493]
[1762657979446,0.17701416,101810.0,101800.0,0.15989493]
[1762657979650,0.53781416,101810.0,101800.0,0.15989493]
[1762657980447,0.17701416,101810.0,101800.0,0.15989493]
[1762657980645,0.07875876,101810.0,101800.0,0.15989493]
[1762657981047,0.53781366,101810.0,101800.0,0.15989493]
[1762657981450,0.53781366,101810.0,101800.0,0.14677493]
[1762657981848,0.63978196,101810.0,101800.0,0.00407043]
[1762657984251,0.1512946,101800.0,101790.0,0.00014702]
[1762657984446,0.63642166,101800.0,101790.0,0.00014702]
[1762657985343,0.63651747,101800.0,101790.0,0.02347702]
[1762657985543,0.63651747,101800.0,101790.0,0.00014702]
[1762657985750,0.63651747,101800.0,101790.0,0.09842122]
[1762657986143,0.63651747,101800.0,101790.0,0.10142122]
[1762657986854,0.63651747,101800.0,101790.0,0.10442122]
[1762657987149,0.63651747,101800.0,101790.0,0.15051122]
[1762657987451,0.53454917,101800.0,101790.0,0.15051122]
[1762657987648,0.63651747,101800.0,101790.0,0.15051122]
[1762657988645,0.1487039,101780.0,101770.0,0.1216213]
[1762657988855,0.1544135,101770.0,101760.0,0.1575061]
[1762657989057,0.6171818,101770.0,101760.0,0.1443861]
[1762657989350,0.63952879,101770.0,101760.0,0.02333]
[1762657989551,0.1546432,101760.0,101750.0,0.1443953]
[1762657989740,0.63382525,101760.0,101750.0,0.1443953]
[1762657989940,0.62882525,101760.0,101750.0,0.1443953]
[1762657993358,0.54152205,101760.0,101750.0,0.1443953]
[1762657993558,0.53785695,101760.0,101750.0,0.1443953]
[1762657993756,0.63982525,101760.0,101750.0,0.1575153]
[1762657994761,0.63982525,101760.0,101750.0,0.1443953]
[1762657994965,0.63982525,101760.0,101750.0,0.04609]
[1762657995262,0.63982525,101760.0,101750.0,0.1444028]
[1762657997359,0.61748076,101760.0,101750.0,0.1444028]
[1762657998561,0.60460076,101760.0,101750.0,0.1575228]
[1762657998963,0.61350076,101760.0,101750.0,0.1575228]
[1762657999363,0.60460076,101760.0,101750.0,0.1575228]
[1762658000061,0.61350076,101760.0,101750.0,0.1575228]
[1762658003862,0.61350076,101760.0,101750.0,0.05921]
[1762658004061,0.61350076,101760.0,101750.0,0.1575228]
[1762658004365,0.7157001,101760.0,101750.0,0.1575228]
[1762658004766,0.3549001,101760.0,101750.0,0.1575228]
[1762658005063,0.61361628,101760.0,101750.0,0.1575228]
[1762658005667,0.50641308,101760.0,101750.0,0.25960662]
[1762658005863,0.60471628,101760.0,101750.0,0.25960662]
[1762658007165,0.60471628,101760.0,101750.0,0.1575228]
[1762658009166,0.50641308,101760.0,101750.0,0.1575228]
[1762658009668,0.60471628,101760.0,101750.0,0.25960662]
[1762658009868,0.50641308,101760.0,101750.0,0.25960662]
[1762658011068,0.60471628,101760.0,101750.0,0.25960662]
[1762658011260,0.62701371,101760.0,101750.0,0.25960662]
[1762658011963,0.63561371,101760.0,101750.0,0.25960662]
[1762658012270,0.63561371,101760.0,101750.0,0.1575228]
[1762658013071,0.53731051,101760.0,101750.0,0.1575228]
[1762658013574,0.53731051,101760.0,101750.0,0.25960662]
[1762658014270,0.02236669,101760.0,101750.0,0.62040662]
[1762658014465,6.926e-05,101760.0,101750.0,0.96817044]
[1762658015179,6.926e-05,101760.0,101750.0,0.72249044]
[1762658015470,6.926e-05,101760.0,101750.0,0.96817044]
[1762658015667,6.926e-05,101760.0,101750.0,0.97117044]
[1762658016167,0.00106926,101760.0,101750.0,0.97217044]
[1762658016375,0.00106926,101760.0,101750.0,0.87008662]
[1762658016573,0.00106926,101760.0,101750.0,0.62440662]
[1762658016768,0.00106926,101760.0,101750.0,0.87008662]
[1762658017269,0.00106926,101760.0,101750.0,0.62440662]
[1762658017468,0.00106926,101760.0,101750.0,0.87008662]
[1762658017771,0.00106926,101760.0,101750.0,1.01838662]
[1762658018367,0.00106926,101760.0,101750.0,0.77270662]
[1762658018673,0.00106926,101760.0,101750.0,0.87479044]
[1762658018867,0.00106926,101760.0,101750.0,1.01838662]
[1762658019971,0.00106926,101760.0,101750.0,1.12047044]
[1762658020172,0.00106926,101760.0,101750.0,0.87479044]
[1762658020375,0.00106926,101760.0,101750.0,1.12047044]
[1762658020575,0.00106926,101760.0,101750.0,0.77270662]
[1762658020971,0.00106926,101760.0,101750.0,1.01838662]
[1762658022473,0.02370926,101760.0,101750.0,1.01838662]
[1762658022660,0.02370926,101760.0,101750.0,0.77270662]
[1762658022865,0.02370926,101760.0,101750.0,1.01838662]
[1762658023073,0.04662926,101760.0,101750.0,1.01838662]
[1762658023770,0.00106926,101760.0,101750.0,1.12047044]
[1762658024869,0.00106926,101760.0,101750.0,0.87479044]
[1762658025070,0.00106926,101760.0,101750.0,1.12047044]
[1762658025372,0.00106926,101760.0,101750.0,0.87479044]
[1762658025676,0.04543926,101760.0,101750.0,0.6706228]
[1762658025868,0.06789304,101760.0,101750.0,0.77270662]
[1762658029977,0.02352304,101760.0,101750.0,0.87479044]
[1762658030176,0.00106926,101760.0,101750.0,0.87479044]
[1762658038886,0.00014702,101770.0,101760.0,0.05748]
[1762658039071,0.00014702,101770.0,101760.0,0.72075084]
[1762658039886,0.02141702,101770.0,101760.0,0.72075084]
[1762658040587,0.04376702,101770.0,101760.0,0.72275084]
[1762658041685,0.14479382,101780.0,101770.0,0.1557735]
[1762658041987,0.14479382,101780.0,101770.0,0.61865732]
[1762658041988,0.02249217,101780.0,101770.0,0.61865732]
[1762658042885,0.36094702,101790.0,101770.0,0.61865732]
[1762658042886,0.60401504,101790.0,101780.0,0.05748]
[1762658043189,0.62656754,101790.0,101780.0,0.1557638]
[1762658044487,0.16849334,101790.0,101780.0,0.25784762]
[1762658044788,0.04496952,101790.0,101780.0,0.25784762]
[1762658045092,0.02369952,101790.0,101780.0,0.25784762]
[1762658045284,0.02369952,101790.0,101780.0,0.72073144]
[1762658045591,0.40442,101810.0,101800.0,0.1557445]
[1762658045790,0.52905665,101810.0,101800.0,0.25782832]
[1762658046387,0.42697283,101810.0,101800.0,0.25782832]
[1762658046596,0.52522773,101810.0,101800.0,0.25782832]
[1762658047094,0.53105665,101810.0,101800.0,0.25882832]
[1762658048183,0.62931155,101810.0,101800.0,0.05848]
[1762658048687,0.26851155,101810.0,101800.0,0.05848]
[1762658048886,0.26851155,101810.0,101800.0,0.1567445]
[1762658049295,0.62931155,101810.0,101800.0,0.05848]
[1762658050494,0.62931155,101810.0,101800.0,0.1567445]
[1762658051101,0.52722773,101810.0,101800.0,0.1567445]
[1762658051303,0.62931155,101810.0,101800.0,0.1567445]
[1762658058897,0.52722773,101810.0,101800.0,0.1567445]
[1762658059110,0.62931155,101810.0,101800.0,0.1567445]
[1762658059694,0.62931155,101810.0,101800.0,0.05848]
[1762658061900,0.62931155,101810.0,101800.0,0.001]
[1762658061901,0.27532155,101810.0,101800.0,0.001]
[1762658062097,0.1486945,101800.0,101790.0,0.00014702]
[1762658062297,0.73621497,101800.0,101790.0,0.00014702]
[1762658062695,0.37541497,101800.0,101790.0,0.00014702]
[1762658062895,0.73621497,101800.0,101790.0,0.00014702]
[1762658063296,0.73621497,101800.0,101790.0,0.00214702]
[1762658063799,0.73721497,101800.0,101790.0,0.00214702]
[1762658064300,0.63508082,101800.0,101790.0,0.00214702]
[1762658065907,0.67023423,101800.0,101790.0,0.00214702]
[1762658073710,1.00895423,101800.0,101790.0,0.00214702]
[1762658076816,0.64815423,101800.0,101790.0,0.00214702]
[1762658077114,1.36975423,101800.0,101790.0,0.00214702]
[1762658079418,1.36975423,101800.0,101790.0,0.06122702]
[1762658079419,1.03103423,101800.0,101790.0,0.06122702]
[1762658080018,1.03103423,101800.0,101790.0,0.04808702]
[1762658085327,1.08379305,101800.0,101790.0,0.04808702]
[1762658085625,1.03103423,101800.0,101790.0,0.04808702]
[1762658086328,1.08379305,101800.0,101790.0,0.04808702]
[1762658087523,1.08379305,101800.0,101790.0,0.00214702]
[1762658091343,1.04863964,101800.0,101790.0,0.00214702]
[1762658099152,0.1431639,101780.0,101770.0,0.05996]
[1762658099343,0.67063872,101780.0,101770.0,0.04618]
[1762658099544,0.1391735,101770.0,101760.0,0.05996]
[1762658099838,0.62455982,101770.0,101760.0,0.05996]
[1762658100451,0.62055982,101770.0,101760.0,0.05996]
[1762658101145,0.62055982,101770.0,101750.0,0.68979875]
[1762658101146,0.1391832,101760.0,101750.0,0.20776702]
[1762658101346,0.62456952,101760.0,101750.0,0.20776702]
[1762658102254,0.62456952,101760.0,101750.0,0.30607982]
[1762658102457,0.62156952,101760.0,101750.0,0.30607982]
[1762658102955,0.62156952,101760.0,101750.0,0.15777982]
[1762658103158,0.62556952,101760.0,101750.0,0.15877982]
[1762658103751,0.62556952,101760.0,101750.0,0.06046702]
[1762658107461,0.63237952,101760.0,101750.0,0.04732702]
[1762658109667,0.62556952,101760.0,101750.0,0.06108702]
[1762658111267,0.62456952,101760.0,101750.0,0.06108702]
[1762658111462,0.62656952,101760.0,101750.0,0.06208702]
[1762658112171,0.62856952,101760.0,101750.0,0.06108702]
[1762658114168,0.62856952,101760.0,101750.0,0.15939982]
[1762658114469,0.62856952,101760.0,101750.0,0.06108702]
[1762658117374,0.62856952,101760.0,101750.0,0.15939982]
[1762658117775,0.52653603,101760.0,101750.0,0.15939982]
[1762658117966,0.14829603,101760.0,101750.0,0.62223331]
[1762658118268,0.007,101760.0,101750.0,0.86791331]
[1762658118475,0.007,101760.0,101750.0,1.46791331]
[1762658118675,0.14422802,101780.0,101770.0,0.1582335]
[1762658118881,0.16670419,101780.0,101770.0,0.1582335]
[1762658119370,0.14422802,101780.0,101770.0,0.1582335]
[1762658119775,0.14922802,101780.0,101770.0,0.1592335]
[1762658119969,0.15622802,101780.0,101770.0,0.1592335]
[1762658120680,0.17870984,101780.0,101770.0,0.06094]
[1762658120878,0.28074333,101780.0,101770.0,0.1592335]
[1762658121269,0.28074333,101780.0,101770.0,0.06094]
[1762658121470,0.28074333,101780.0,101770.0,0.1592335]
[1762658121779,0.27574333,101780.0,101770.0,0.1582335]
[1762658121980,0.27674333,101780.0,101770.0,0.05994]
[1762658122372,0.27074333,101780.0,101770.0,0.1592335]
[1762658123093,0.16870264,101780.0,101770.0,0.1592335]
[1762658124183,0.14622082,101780.0,101770.0,0.1592335]
[1762658124392,0.16870668,101780.0,101770.0,0.1592335]
[1762658125089,0.14622082,101780.0,101770.0,0.1592335]
[1762658126286,0.2482484,101780.0,101770.0,0.26126108]
[1762658126491,0.2482485,101780.0,101770.0,0.62206108]
[1762658127085,0.14622092,101780.0,101770.0,0.62206108]
[1762658128999,0.2482485,101780.0,101770.0,0.1592335]
[1762658129385,0.2482485,101780.0,101770.0,0.06094]
[1762658130094,0.35027608,101780.0,101770.0,0.06094]
[1762658131195,0.2482485,101780.0,101770.0,0.06094]
[1762658131786,0.71789608,101780.0,101770.0,0.04718]
[1762658131991,0.74038238,101780.0,101770.0,0.04718]
[1762658132289,0.74038238,101780.0,101770.0,0.001]
[1762658133597,0.1435732,101760.0,101750.0,0.15813252]
[1762658133793,0.70842836,101760.0,101750.0,0.05982702]
[1762658134190,0.71523836,101760.0,101750.0,0.04606702]
[1762658134785,0.73819987,101760.0,101750.0,0.04606702]
[1762658134985,0.73819987,101760.0,101750.0,0.04806702]
[1762658135193,0.73919987,101760.0,101750.0,0.05106702]
[1762658135801,0.73919987,101760.0,101750.0,0.06394702]
[1762658136099,0.74019987,101760.0,101750.0,0.05894702]
[1762658136289,0.74319987,101760.0,101750.0,0.05994702]
[1762658138089,0.74319987,101760.0,101750.0,0.15825982]
[1762658138394,0.73638987,101760.0,101750.0,0.15825982]
[1762658138700,0.73638987,101760.0,101750.0,0.05994702]
[1762658138900,0.73638987,101760.0,101750.0,0.15825982]
[1762658140796,0.73638954,101760.0,101750.0,0.15825982]
[1762658141301,0.73638954,101760.0,101750.0,0.05994702]
[1762658141602,0.74319954,101760.0,101750.0,0.05994702]
[1762658145307,0.63436196,101760.0,101750.0,0.05994702]
[1762658146408,0.63436196,101760.0,101750.0,0.15825982]
[1762658148204,0.27356196,101760.0,101750.0,0.15825982]
[1762658148507,0.63436196,101760.0,101750.0,0.15825982]
[1762658154209,0.27356196,101760.0,101750.0,0.15825982]
[1762658157714,0.27356196,101760.0,101750.0,0.2602874]
[1762658157913,0.02796118,101760.0,101750.0,0.6210874]
[1762658158118,0.005,101760.0,101750.0,0.72311498]
[1762658158418,0.005,101760.0,101750.0,0.96879498]
[1762658158621,0.005,101760.0,101750.0,0.72311498]
[1762658159012,0.005,101760.0,101750.0,0.96879498]
[1762658159911,0.005,101760.0,101750.0,0.8667674]
[1762658160225,0.005,101760.0,101750.0,0.6210874]
[1762658160407,0.005,101760.0,101750.0,0.8667674]
[1762658160717,0.00068378,101760.0,101750.0,0.8667674]
[1762658160917,0.00068378,101760.0,101750.0,0.96879498]
[1762658161219,0.04525378,101760.0,101750.0,0.6210874]
[1762658161416,0.04525378,101760.0,101750.0,0.8667674]
[1762658161614,0.04525378,101760.0,101750.0,0.6210874]
[1762658163016,0.00068378,101760.0,101750.0,0.6210874]
[1762658163620,0.00068378,101760.0,101750.0,0.8667674]
[1762658164012,0.04525378,101760.0,101750.0,0.8667674]
[1762658164213,0.04525378,101760.0,101750.0,0.6210874]
[1762658164621,0.02230378,101760.0,101750.0,0.6210874]
[1762658164822,0.00068378,101760.0,101750.0,0.96879498]
[1762658165121,0.04471702,101780.0,101770.0,0.1555035]
[1762658165320,0.06765681,101780.0,101770.0,0.25753108]
[1762658165722,0.06765681,101780.0,101770.0,0.33433133]
[1762658166618,0.06765681,101780.0,101770.0,0.69513133]
[1762658167515,0.07165681,101780.0,101770.0,0.69613133]
[1762658168224,0.07465681,101780.0,101770.0,0.69713133]
[1762658170320,0.05170681,101780.0,101770.0,0.69713133]
[1762658171023,0.17294071,101780.0,101770.0,0.69713133]
[1762658171712,0.07465681,101780.0,101770.0,0.69713133]
[1762658171919,0.03008681,101780.0,101770.0,0.69713133]
[1762658172523,0.00714702,101780.0,101770.0,0.69713133]
[1762658172828,0.00714702,101780.0,101770.0,1.04479891]
[1762658173017,0.00714702,101780.0,101770.0,1.19309891]
[1762658173618,0.28012098,101810.0,101800.0,0.1554745]
[1762658173823,0.28012098,101810.0,101800.0,0.5162745]
[1762658173824,0.26775369,101810.0,101800.0,0.5162745]
[1762658174022,0.26775369,101810.0,101800.0,0.61830208]
[1762658174827,0.26775369,101810.0,101800.0,0.5162745]
[1762658175026,0.28275369,101810.0,101800.0,0.5182745]
[1762658175223,0.28275369,101810.0,101800.0,0.62030208]
[1762658175419,0.28275369,101810.0,101800.0,0.5182745]
[1762658175620,0.28275369,101810.0,101800.0,0.62030208]
[1762658175830,0.27875369,101810.0,101800.0,0.61930208]
[1762658176129,0.27275369,101810.0,101800.0,0.5172745]
[1762658177522,0.27275369,101810.0,101800.0,0.1564745]
[1762658178228,0.27275369,101810.0,101800.0,0.5172745]
[1762658178229,0.17449879,101810.0,101800.0,0.5172745]
[1762658178424,0.27275369,101810.0,101800.0,0.5172745]
[1762658178925,0.04957,101810.0,101800.0,0.61930208]
[1762658179136,0.003,101810.0,101800.0,0.61930208]
[1762658179628,0.003,101810.0,101800.0,0.72132966]
[1762658179834,0.003,101810.0,101800.0,0.61930208]
[1762658180330,0.02462,101810.0,101800.0,0.61930208]
[1762658180628,0.02162,101810.0,101800.0,0.61830208]
[1762658180834,0.02362,101810.0,101800.0,0.62130208]
[1762658181533,0.04557,101810.0,101800.0,0.62230208]
[1762658183427,0.001,101810.0,101800.0,0.72432966]
[1762658186337,0.001,101810.0,101800.0,0.62222133]
[1762658188530,0.001,101810.0,101800.0,0.77052133]
[1762658188836,0.00014702,101820.0,101810.0,0.1549949]
[1762658189040,0.00014702,101820.0,101810.0,0.61774173]
[1762658189539,0.00014702,101820.0,101810.0,0.69469257]
[1762658189838,0.12077232,101820.0,101810.0,0.59274574]
[1762658190040,0.14309232,101820.0,101810.0,0.59274574]
[1762658190544,0.14409232,101820.0,101810.0,0.23294574]
[1762658190738,0.04584702,101820.0,101810.0,0.59374574]
[1762658194449,0.14409232,101820.0,101810.0,0.59374574]
[1762658195737,0.04584702,101820.0,101810.0,0.59374574]
[1762658196342,0.06865663,101820.0,101810.0,0.59374574]
[1762658196845,0.06865663,101820.0,101810.0,0.69569257]
[1762658197142,0.06865663,101820.0,101810.0,0.59374574]
[1762658197346,0.16690213,101820.0,101810.0,0.59374574]
[1762658197843,0.16690213,101820.0,101810.0,0.23294574]
[1762658198041,0.16690213,101820.0,101810.0,0.59374574]
[1762658202150,0.16690213,101820.0,101810.0,0.13469084]
[1762658202451,0.02395663,101820.0,101810.0,0.59374594]
[1762658203740,0.02395663,101820.0,101810.0,0.69569277]
[1762658207348,0.02395663,101820.0,101810.0,0.84399277]
[1762658211050,0.0352685,101830.0,101820.0,0.25766233]
[1762658211255,0.0352685,101830.0,101820.0,0.61846233]
[1762658211742,0.5369208,101840.0,101830.0,0.05747]
[1762658211945,0.5369208,101840.0,101830.0,0.1557058]
[1762658212342,0.5369208,101840.0,101830.0,0.05747]
[1762658212752,0.5506108,101840.0,101830.0,0.05747]
[1762658212947,0.65255763,101840.0,101830.0,0.04374]
[1762658213152,0.65555763,101840.0,101830.0,0.04374]
[1762658213456,0.65755763,101840.0,101830.0,0.04374]
[1762658213856,0.71046038,101840.0,101830.0,0.04374]
[1762658214259,0.71046038,101840.0,101830.0,0.02171]
[1762658214447,0.67519188,101840.0,101830.0,0.02171]
[1762658214956,0.67519188,101840.0,101830.0,0.04374]
[1762658217552,0.71047127,101840.0,101830.0,0.04374]
[1762658217755,0.71047127,101840.0,101830.0,0.02171]
[1762658217962,0.1532558,101830.0,101820.0,0.04371702]
[1762658218263,0.65128202,101830.0,101820.0,0.04371702]
[1762658218563,0.65128202,101830.0,101820.0,0.02131702]
[1762658218763,0.66890538,101830.0,101820.0,0.02131702]
[1762658219367,0.66890538,101830.0,101820.0,0.00014702]
[1762658219864,0.67190538,101830.0,101820.0,0.00014702]
[1762658221566,0.67190538,101830.0,101820.0,0.02131702]
[1762658222063,0.67190538,101830.0,101820.0,0.04371702]
[1762658222268,0.70717546,101830.0,101820.0,0.14196252]
[1762658222474,0.59501863,101830.0,101820.0,0.15550252]
[1762658222768,0.54211588,101830.0,101820.0,0.15550252]
[1762658222968,0.56489816,101830.0,101820.0,0.15550252]
[1762658223369,0.40809228,101830.0,101820.0,0.25744935]
[1762658223664,0.02478228,101830.0,101820.0,0.61924935]
[1762658223967,0.04629228,101830.0,101820.0,0.61924935]
[1762658224173,0.06959228,101830.0,101820.0,0.61924935]
[1762658224378,0.06959228,101830.0,101820.0,0.51730252]
[1762658224783,0.06759228,101830.0,101820.0,0.51730252]
[1762658224978,0.06759228,101830.0,101820.0,0.61924935]
[1762658227975,0.16582818,101830.0,101820.0,0.61924935]
[1762658228494,0.16582818,101830.0,101820.0,0.05825702]
[1762658228680,0.53097818,101830.0,101820.0,0.05825702]
[1762658230186,0.52662818,101830.0,101820.0,0.15650262]
[1762658230492,0.16582818,101830.0,101820.0,0.15650262]
[1762658230888,0.16582818,101830.0,101820.0,0.51730262]
[1762658231089,0.06759228,101830.0,101820.0,0.51730262]
[1762658231989,0.06759228,101830.0,101820.0,0.61924945]
[1762658232194,0.16582818,101830.0,101820.0,0.51730262]
[1762658232487,0.16582818,101830.0,101820.0,0.15650262]
[1762658233791,0.17909818,101830.0,101820.0,0.04471702]
[1762658233986,0.53989818,101830.0,101820.0,0.04471702]
[1762658234794,0.53989818,101830.0,101820.0,0.05825702]
[1762658235496,0.53962313,101830.0,101820.0,0.05825702]
[1762658235893,0.53962313,101830.0,101820.0,0.15650252]
[1762658236595,0.53962313,101830.0,101820.0,0.05825702]
[1762658236795,0.64155047,101830.0,101820.0,0.04471702]
[1762658238397,0.64355047,101830.0,101820.0,0.04471702]
[1762658238698,0.64355047,101830.0,101820.0,0.02231702]
[1762658239097,0.64455047,101830.0,101820.0,0.02131702]
[1762658239698,0.67982055,101830.0,101820.0,0.04371702]
[1762658239899,0.67982055,101830.0,101820.0,0.00014702]
[1762658240299,0.7327233,101830.0,101820.0,0.00014702]
[1762658241092,0.69745322,101830.0,101820.0,0.00014702]
[1762658243092,0.69745322,101830.0,101820.0,0.02131702]
[1762658243296,0.69745322,101830.0,101820.0,0.00014702]
[1762658248501,0.7994855,101830.0,101820.0,0.00014702]
[1762658248707,0.1476751,101810.0,101800.0,0.04436]
[1762658248900,0.63296214,101810.0,101800.0,0.04436]
[1762658249300,0.63296214,101810.0,101800.0,0.02193]
[1762658249698,0.1551248,101800.0,101790.0,0.05823702]
[1762658250001,0.64041184,101800.0,101790.0,0.04450702]
[1762658251102,0.74239165,101800.0,101790.0,0.00014702]
[1762658251504,0.74239165,101800.0,101790.0,0.02207702]
[1762658251709,0.74239165,101800.0,101790.0,0.04450702]
[1762658251904,0.74339165,101800.0,101790.0,0.04850702]
[1762658252298,0.74439165,101800.0,101790.0,0.04450702]
[1762658252499,0.74539165,101800.0,101790.0,0.04450702]
[1762658256208,0.64341184,101800.0,101790.0,0.04450702]
[1762658258014,0.64141184,101800.0,101790.0,0.04450702]
[1762658258412,0.64041184,101800.0,101790.0,0.04450702]
[1762658258614,0.64041184,101800.0,101790.0,0.04550702]
[1762658258913,0.64041184,101800.0,101790.0,0.61920133]
[1762658258914,0.06611723,101800.0,101790.0,0.61920133]
[1762658259214,0.1418651,101810.0,101800.0,0.1552648]
[1762658259408,0.16432951,101810.0,101800.0,0.61804461]
[1762658259611,0.1418651,101810.0,101800.0,0.61804461]
[1762658259914,0.1418651,101810.0,101800.0,0.25724461]
[1762658260110,0.16433307,101810.0,101800.0,0.61804461]
[1762658260315,0.1418651,101810.0,101800.0,0.61804461]
[1762658260513,0.1438651,101810.0,101800.0,0.61804461]
[1762658261216,0.1448651,101810.0,101800.0,0.61804461]
[1762658261613,0.1448651,101810.0,101800.0,0.51977981]
[1762658261818,0.64336624,101810.0,101800.0,0.04436]
[1762658262218,0.64336624,101810.0,101800.0,0.06]
[1762658262219,0.28256624,101810.0,101800.0,0.06]
[1762658262419,0.64336624,101810.0,101800.0,0.06]
[1762658262615,0.26931624,101810.0,101800.0,0.06]
[1762658262912,0.62811624,101810.0,101800.0,0.06]
[1762658263115,0.62811624,101810.0,101800.0,0.061]
[1762658263420,0.52613643,101810.0,101800.0,0.061]
[1762658263624,0.26731624,101810.0,101800.0,0.1592648]
[1762658263820,0.26631624,101810.0,101800.0,0.1552648]
[1762658264020,0.26731624,101810.0,101800.0,0.26024461]
[1762658264520,0.26731624,101810.0,101800.0,0.15997981]
[1762658264521,0.26631624,101810.0,101800.0,0.15997981]
[1762658264815,0.26631624,101810.0,101800.0,0.25824461]
[1762658265022,0.62711624,101810.0,101800.0,0.25824461]
[1762658266414,0.62711624,101810.0,101800.0,0.15997981]
[1762658266918,0.63339624,101810.0,101800.0,0.04536]
[1762658268022,0.63339624,101810.0,101800.0,0.001]
[1762658268416,0.73537605,101810.0,101800.0,0.001]
[1762658268823,0.77060505,101810.0,101800.0,0.001]
[1762658270211,0.1546846,101800.0,101790.0,0.00014702]
[1762658270426,0.74191555,101800.0,101790.0,0.00014702]
[1762658271620,0.74291555,101800.0,101790.0,0.00014702]
[1762658272517,0.74491555,101800.0,101790.0,0.00014702]
[1762658274630,0.1486739,101780.0,101770.0,0.1431135]
[1762658274830,0.61145371,101780.0,101770.0,0.04482]
[1762658275029,0.71343352,101780.0,101770.0,0.04482]
[1762658275328,0.73592971,101780.0,101770.0,0.04482]
[1762658275626,0.6339499,101780.0,101770.0,0.04482]
[1762658276427,0.6339499,101780.0,101770.0,0.04582]
[1762658276626,0.6339499,101780.0,101770.0,0.001]
[1762658276830,0.6349499,101780.0,101770.0,0.04827]
[1762658278231,0.6349499,101780.0,101770.0,0.1465635]
[1762658279932,0.6349499,101780.0,101770.0,0.04827]
[1762658280933,0.73692971,101780.0,101770.0,0.04827]
[1762658281322,0.6349499,101780.0,101770.0,0.04827]
[1762658281527,0.2741499,101780.0,101770.0,0.1465636]
[1762658281722,0.6349499,101780.0,101770.0,0.1465636]
[1762658281919,0.2741499,101780.0,101770.0,0.1465636]
[1762658282331,0.6349499,101780.0,101770.0,0.1465636]
[1762658282933,0.2741499,101780.0,101770.0,0.1605436]
[1762658283131,0.25165371,101780.0,101770.0,0.1605436]
[1762658283430,0.27405051,101780.0,101770.0,0.1605436]
[1762658283933,0.1653007,101780.0,101770.0,0.26252341]
[1762658285231,0.1429039,101780.0,101770.0,0.62332341]
[1762658285433,0.1429039,101780.0,101770.0,0.26252341]
[1762658286922,0.16528963,101780.0,101770.0,0.62332341]
[1762658287128,0.1429039,101780.0,101770.0,0.62332341]
[1762658288540,0.04462,101780.0,101770.0,0.62332341]
[1762658288734,0.1204039,101780.0,101770.0,0.62332341]
[1762658289234,0.1429639,101780.0,101770.0,0.62332341]
[1762658289443,0.1429639,101780.0,101770.0,0.26252341]
[1762658289637,0.1429639,101780.0,101770.0,0.62332341]
[1762658290134,0.04468,101780.0,101770.0,0.62332341]
[1762658292126,0.1429639,101780.0,101770.0,0.62332341]
[1762658292334,0.1429639,101780.0,101770.0,0.62336153]
[1762658292741,0.04468,101780.0,101770.0,0.62336153]
[1762658293840,0.001,101780.0,101770.0,0.62336153]
[1762658294034,0.001,101780.0,101770.0,0.72537946]
[1762658294234,6.286e-05,101780.0,101770.0,0.72537946]
[1762658294441,6.286e-05,101780.0,101770.0,0.86900153]
[1762658294740,6.286e-05,101780.0,101770.0,0.97101946]
[1762658295136,6.286e-05,101780.0,101770.0,0.86900153]
[1762658295337,2.86e-06,101780.0,101770.0,0.72537946]
[1762658295644,2.86e-06,101780.0,101770.0,0.97101946]
[1762658296240,2.86e-06,101780.0,101770.0,0.72537946]
[1762658296435,2.86e-06,101780.0,101770.0,0.97101946]
[1762658296641,2.86e-06,101780.0,101770.0,0.72537946]
[1762658296840,2.86e-06,101780.0,101770.0,0.97101946]
[1762658298444,2.86e-06,101780.0,101770.0,0.62336153]
[1762658298648,0.04404286,101780.0,101770.0,0.62336153]
[1762658298942,0.02148286,101780.0,101770.0,0.62336153]
[1762658299241,2.86e-06,101780.0,101770.0,0.57909153]
[1762658301243,2.86e-06,101780.0,101770.0,0.4770736]
[1762658301546,2.86e-06,101780.0,101770.0,0.92674946]
[1762658301843,0.02162702,101790.0,101780.0,0.1565339]
[1762658302041,0.06661202,101790.0,101780.0,0.61935183]
[1762658302545,0.16488632,101790.0,101780.0,0.61935183]
[1762658302740,0.16488632,101790.0,101780.0,0.72136976]
[1762658302949,0.16488632,101790.0,101780.0,0.61935183]
[1762658303649,0.06661202,101790.0,101780.0,0.61935183]
[1762658304132,0.06661202,101790.0,101780.0,0.62135183]
[1762658305046,0.16488632,101790.0,101780.0,0.62235183]
[1762658305346,0.16588632,101790.0,101780.0,0.62335183]
[1762658306653,0.28104425,101790.0,101780.0,0.16426793]
[1762658306842,0.28104425,101790.0,101780.0,0.04827]
[1762658307044,0.28104425,101790.0,101780.0,0.1594939]
[1762658307644,0.28104425,101790.0,101780.0,0.06121]
[1762658308051,0.28104425,101790.0,101780.0,0.1594939]
[1762658308349,0.16588632,101790.0,101780.0,0.1594939]
[1762658308750,0.17902632,101790.0,101780.0,0.1594939]
[1762658309750,0.53982632,101790.0,101780.0,0.1594939]
[1762658309949,0.53982632,101790.0,101780.0,0.06121]
[1762658310751,0.53982632,101790.0,101780.0,0.1594939]
[1762658313442,0.17902632,101790.0,101780.0,0.1594939]
[1762658313648,0.53982632,101790.0,101780.0,0.1594939]
[1762658314054,0.17902632,101790.0,101780.0,0.1594939]
[1762658314750,0.53982632,101790.0,101780.0,0.1594939]
[1762658316454,0.16588632,101790.0,101780.0,0.1594939]
[1762658316747,0.52668632,101790.0,101780.0,0.1594939]
[1762658317966,0.52668632,101790.0,101780.0,0.06121]
[1762658318260,0.16588632,101790.0,101780.0,0.159494]
[1762658319054,0.52668632,101790.0,101780.0,0.159494]
[1762658319555,0.16588632,101790.0,101780.0,0.159494]
[1762658319756,0.16588632,101790.0,101780.0,0.06121]
[1762658320054,0.52668632,101790.0,101780.0,0.06121]
[1762658320454,0.52668632,101790.0,101780.0,0.1594939]
[1762658321357,0.52668632,101790.0,101780.0,0.06121]
[1762658322656,0.52668632,101790.0,101780.0,0.1594939]
[1762658323256,0.49129064,101790.0,101780.0,0.1594939]
[1762658323457,0.50635064,101790.0,101780.0,0.1594939]
[1762658326553,0.384225,101790.0,101780.0,0.26151653]
[1762658326857,0.023425,101790.0,101780.0,0.62231653]
[1762658327156,0.001,101790.0,101780.0,0.69300759]
[1762658327356,0.001,101790.0,101780.0,0.62231653]
[1762658327556,0.001,101790.0,101780.0,0.93860759]
[1762658327756,0.001,101790.0,101780.0,0.69300759]
[1762658327960,0.00014702,101800.0,101790.0,0.05742]
[1762658328152,0.00014702,101800.0,101790.0,0.61851693]
[1762658328354,0.02259902,101800.0,101790.0,0.61851693]
[1762658328959,0.02259902,101800.0,101790.0,0.25771693]
[1762658329152,0.02259902,101800.0,101790.0,0.61851693]
[1762658330261,0.05471902,101800.0,101790.0,0.61851693]
[1762658330462,0.05471902,101800.0,101790.0,0.62051693]
[1762658330663,0.15298362,101800.0,101790.0,0.62051693]
[1762658330855,0.15298362,101800.0,101790.0,0.5184943]